bitfinex/quotes_BTCUSD_20230110
["timestamp","ask_amount","ask_price","bid_price","bid_amount"]
[1673320936992,0.00165741,17197.0,17196.0,2.13214664]
[1673320937520,0.00165741,17197.0,17196.0,2.56467474]
[1673320937790,0.00165741,17197.0,17196.0,1.89156739]
[1673320938080,0.00165741,17197.0,17196.0,2.5834718]
[1673320938552,0.00165741,17197.0,17196.0,2.1509437]
[1673320942777,0.00165741,17197.0,17196.0,1.89156739]
[1673320943028,0.00824493,17198.0,17197.0,0.2868779]
[1673320943275,0.00824493,17198.0,17197.0,2.0901333]
[1673320943533,0.00824493,17198.0,17197.0,2.01580204]
[1673320943785,0.00824493,17198.0,17197.0,3.0165208]
[1673320944067,0.00824493,17198.0,17197.0,0.82800127]
[1673320944582,0.01124493,17198.0,17197.0,0.89900127]
[1673320944834,0.01124493,17198.0,17197.0,1.15971652]
[1673320946360,0.01124493,17198.0,17197.0,0.98589819]
[1673320947078,0.01124493,17198.0,17197.0,1.15971652]
[1673320947328,0.01124493,17198.0,17197.0,0.98590974]
[1673320947831,0.01124493,17198.0,17197.0,1.15971652]
[1673320948590,0.01124493,17198.0,17197.0,0.79754852]
[1673320950167,0.01124493,17198.0,17197.0,1.15971652]
[1673320950935,0.01124493,17198.0,17197.0,0.79754852]
[1673320951190,0.01124493,17198.0,17197.0,1.15971652]
[1673320952225,0.01124493,17198.0,17197.0,1.89417452]
[1673320952483,0.01124493,17198.0,17197.0,1.59417452]
[1673320952761,0.01124493,17198.0,17197.0,1.15971652]
[1673320957105,0.01124493,17198.0,17197.0,1.45971652]
[1673320957352,0.01124493,17198.0,17197.0,1.63345927]
[1673320958115,0.01124493,17198.0,17197.0,1.80265927]
[1673320959157,0.01124493,17198.0,17197.0,2.06321056]
[1673320959424,0.01124493,17198.0,17197.0,2.03469247]
[1673320959682,0.01124493,17198.0,17197.0,2.16790166]
[1673320959903,0.01124493,17198.0,17197.0,1.81773857]
[1673320960369,0.01124493,17198.0,17197.0,2.16778029]
[1673320960618,0.01124493,17198.0,17197.0,1.81773857]
[1673320961324,0.01124493,17198.0,17197.0,1.77826271]
[1673320961572,0.01124493,17198.0,17197.0,1.34380471]
[1673320961819,0.01124493,17198.0,17197.0,1.1698852]
[1673320963625,0.01124493,17198.0,17197.0,1.51749506]
[1673320963875,0.01124493,17198.0,17197.0,1.34380471]
[1673320966148,0.01117617,17198.0,17197.0,1.34380471]
[1673320968611,0.01117617,17198.0,17197.0,1.77826271]
[1673320968843,0.01117617,17198.0,17197.0,1.81773857]
[1673320969620,0.01117617,17198.0,17197.0,2.17016974]
[1673320969873,0.01117617,17198.0,17197.0,1.81773857]
[1673320970130,0.01117617,17198.0,17197.0,2.17026322]
[1673320970382,0.01117617,17198.0,17197.0,1.81773857]
[1673320970632,0.01117617,17198.0,17197.0,1.8226533]
[1673320970884,0.01117617,17198.0,17197.0,1.47012871]
[1673320971393,0.01117617,17198.0,17197.0,1.8175398]
[1673320972158,0.01117617,17198.0,17197.0,1.68423709]
[1673320972417,0.01117617,17198.0,17197.0,1.81832959]
[1673320972683,0.01117617,17198.0,17197.0,1.68423709]
[1673320973219,0.01117617,17198.0,17197.0,1.80028154]
[1673320974221,0.01117617,17198.0,17197.0,1.68423709]
[1673320974473,0.01117617,17198.0,17197.0,1.44950856]
[1673320975741,0.01117617,17198.0,17197.0,1.79691091]
[1673320976485,0.01117617,17198.0,17197.0,1.79690948]
[1673320976726,0.01117617,17198.0,17197.0,1.44950856]
[1673320976977,0.01117617,17198.0,17197.0,1.7968585]
[1673320977253,0.01117617,17198.0,17197.0,1.44950856]
[1673320978311,0.01117617,17198.0,17197.0,1.28030856]
[1673320982152,0.01117617,17198.0,17197.0,1.62788277]
[1673320982409,0.01117617,17198.0,17197.0,1.32788277]
[1673320982926,0.01117617,17198.0,17197.0,1.62788277]
[1673320983430,0.01117617,17198.0,17197.0,1.28030856]
[1673320985232,0.01117617,17198.0,17197.0,0.91814056]
[1673320985484,0.01117617,17198.0,17197.0,1.26577281]
[1673320985754,0.01117617,17198.0,17197.0,1.62794081]
[1673320986020,0.01117617,17198.0,17197.0,1.28030856]
[1673320986805,0.01109888,17198.0,17197.0,1.167626]
[1673320987063,0.01109888,17198.0,17197.0,1.30580398]
[1673320987804,0.01109888,17198.0,17197.0,1.167626]
[1673320988342,0.01109888,17198.0,17197.0,1.336326]
[1673320989150,0.01109888,17198.0,17197.0,1.45485663]
[1673320989641,0.01109888,17198.0,17197.0,1.02039863]
[1673320989909,0.01109888,17198.0,17197.0,1.22039863]
[1673320990155,0.01109888,17198.0,17197.0,1.65499569]
[1673320990911,0.01109888,17198.0,17197.0,1.53646506]
[1673320991169,0.01109888,17198.0,17197.0,2.53646506]
[1673320991398,0.01109888,17198.0,17197.0,2.68698532]
[1673320991903,0.01109888,17198.0,17197.0,2.101868]
[1673320992154,0.01109888,17198.0,17197.0,2.25229325]
[1673320992937,0.01109888,17198.0,17197.0,2.68688589]
[1673320993425,0.01109888,17198.0,17197.0,1.47244077]
[1673320993704,0.01109888,17198.0,17197.0,1.17244077]
[1673320993953,0.01109888,17198.0,17197.0,1.47244077]
[1673320994214,0.01109888,17198.0,17197.0,1.83460877]
[1673320994462,0.01109888,17198.0,17197.0,1.33646064]
[1673320994718,0.01109888,17198.0,17197.0,1.901868]
[1673320994966,0.01109888,17198.0,17197.0,2.35135526]
[1673320995215,0.00370675,17198.0,17197.0,2.87270686]
[1673320995720,0.00370675,17198.0,17197.0,3.46665453]
[1673320996522,0.00370675,17198.0,17197.0,2.94530293]
[1673320997554,0.00070675,17198.0,17197.0,3.39565453]
[1673320997802,0.00370675,17198.0,17197.0,3.53465453]
[1673320998050,0.00370675,17198.0,17197.0,3.01330293]
[1673320998826,0.00370675,17198.0,17197.0,3.02180293]
[1673321000095,0.61765453,17201.0,17198.0,0.2]
[1673321000355,1.27293139,17202.0,17199.0,0.48605518]
[1673321000598,0.89703139,17202.0,17199.0,0.67226907]
[1673321000849,1.24503622,17202.0,17199.0,0.67226907]
[1673321001349,0.17739044,17201.0,17199.0,0.67226907]
[1673321001614,0.17739044,17201.0,17199.0,0.43459118]
[1673321001879,0.003,17201.0,17199.0,0.75571008]
[1673321002137,0.003,17201.0,17200.0,0.13112388]
[1673321002398,0.65005823,17202.0,17200.0,0.13112388]
[1673321002663,0.64805823,17202.0,17200.0,0.13112388]
[1673321002870,0.002,17201.0,17200.0,0.13112388]
[1673321003632,1.097172,17202.0,17200.0,0.13112388]
[1673321003897,0.002,17201.0,17200.0,0.13112388]
[1673321006743,0.002,17201.0,17200.0,0.60496035]
[1673321007024,0.002,17201.0,17200.0,0.30496035]
[1673321007271,0.18705461,17202.0,17200.0,0.30496035]
[1673321007541,0.002,17201.0,17200.0,0.37396035]
[1673321007787,0.38705461,17202.0,17200.0,0.30496035]
[1673321008051,0.002,17201.0,17200.0,0.3738508]
[1673321008342,0.64805823,17202.0,17200.0,0.3048508]
[1673321008814,0.38705461,17202.0,17200.0,0.3048508]
[1673321009352,0.38705461,17202.0,17200.0,0.3738508]
[1673321009353,0.38905461,17202.0,17200.0,0.3738508]
[1673321010228,1.09912411,17202.0,17200.0,0.20001433]
[1673321010483,0.362168,17201.0,17200.0,0.20001433]
[1673321010742,0.17439044,17201.0,17200.0,0.20001433]
[1673321012260,0.17439044,17201.0,17200.0,0.13101433]
[1673321012504,0.17639044,17201.0,17200.0,0.20001433]
[1673321013975,0.002,17201.0,17200.0,0.20001433]
[1673321015490,0.002,17201.0,17200.0,0.6738508]
[1673321015729,0.002,17201.0,17200.0,0.3738508]
[1673321019516,0.002,17201.0,17200.0,0.6738508]
[1673321019766,0.002,17201.0,17200.0,0.3738508]
[1673321021277,0.002,17201.0,17200.0,0.6738508]
[1673321021820,0.002,17201.0,17200.0,0.3738508]
[1673321022326,0.002,17201.0,17200.0,0.20001433]
[1673321023385,0.17639044,17201.0,17200.0,0.20001433]
[1673321023636,0.53855844,17201.0,17200.0,0.20001433]
[1673321023894,0.17639044,17201.0,17200.0,0.20001433]
[1673321025716,0.53855844,17201.0,17200.0,0.20001433]
[1673321026478,0.79956206,17201.0,17200.0,0.20001433]
[1673321026729,0.53855844,17201.0,17200.0,0.20001433]
[1673321027499,0.17639044,17201.0,17200.0,0.20001433]
[1673321028490,0.53855844,17201.0,17200.0,0.20001433]
[1673321034230,0.79956206,17201.0,17200.0,0.20001433]
[1673321038479,0.43739406,17201.0,17200.0,0.20001433]
[1673321040478,0.79956206,17201.0,17200.0,0.20001433]
[1673321041988,1.94067279,17201.0,17200.0,0.069]
[1673321042253,2.63797133,17201.0,17200.0,0.069]
[1673321042505,2.2893223,17201.0,17200.0,0.069]
[1673321043516,2.67286483,17201.0,17200.0,0.01]
[1673321043777,2.63586483,17201.0,17199.0,0.12331896]
[1673321044027,1.16694515,17200.0,17199.0,0.12331896]
[1673321044314,1.61624747,17200.0,17199.0,0.12331896]
[1673321045309,1.65424747,17200.0,17199.0,0.12731896]
[1673321045569,1.20494515,17200.0,17199.0,0.12731896]
[1673321045847,0.94353886,17200.0,17199.0,0.12731896]
[1673321046666,0.58137086,17200.0,17199.0,0.12731896]
[1673321046934,0.94353886,17200.0,17199.0,0.12731896]
[1673321047459,0.58137086,17200.0,17199.0,0.004]
[1673321047721,0.94353886,17200.0,17199.0,0.004]
[1673321048258,0.93787253,17200.0,17199.0,0.004]
[1673321051254,1.19927882,17200.0,17199.0,0.004]
[1673321052037,0.93787253,17200.0,17199.0,0.004]
[1673321052800,0.76360167,17200.0,17199.0,0.004]
[1673321053547,0.76360167,17200.0,17199.0,0.12177083]
[1673321054845,0.569268,17200.0,17199.0,0.12177083]
[1673321055097,0.038,17200.0,17199.0,0.12177083]
[1673321055597,0.038,17200.0,17199.0,0.42177083]
[1673321056337,0.038,17200.0,17199.0,0.12177083]
[1673321057337,0.038,17200.0,17199.0,0.42177083]
[1673321058114,0.038,17200.0,17199.0,0.12177083]
[1673321062098,0.038,17200.0,17199.0,0.42177083]
[1673321063108,0.038,17200.0,17199.0,0.12177083]
[1673321063874,0.57443886,17200.0,17199.0,0.12177083]
[1673321064128,0.400168,17200.0,17199.0,0.12177083]
[1673321064382,0.57443886,17200.0,17199.0,0.12177083]
[1673321064636,0.038,17200.0,17199.0,0.12177083]
[1673321065130,0.400168,17200.0,17199.0,0.12177083]
[1673321065651,0.038,17200.0,17199.0,0.12177083]
[1673321066149,0.400168,17200.0,17199.0,0.12177083]
[1673321066419,0.038,17200.0,17199.0,0.12177083]
[1673321067143,0.400168,17200.0,17199.0,0.12177083]
[1673321067903,0.038,17200.0,17199.0,0.12177083]
[1673321068143,0.57443886,17200.0,17199.0,0.12177083]
[1673321068666,1.82844013,17200.0,17199.0,0.004]
[1673321068932,2.35127478,17200.0,17199.0,0.004]
[1673321069204,2.17698266,17200.0,17199.0,0.004]
[1673321069453,2.35127468,17200.0,17199.0,0.004]
[1673321069716,2.00272213,17200.0,17199.0,0.004]
[1673321072502,2.17698266,17200.0,17199.0,0.004]
[1673321075866,2.00271664,17200.0,17199.0,0.004]
[1673321076119,2.35125917,17200.0,17199.0,0.004]
[1673321076374,2.00271664,17200.0,17199.0,0.004]
[1673321078117,2.17698266,17200.0,17199.0,0.004]
[1673321078382,2.35125712,17200.0,17199.0,0.004]
[1673321079141,2.17698266,17200.0,17199.0,0.004]
[1673321079940,1.72768034,17200.0,17199.0,0.004]
[1673321080193,1.55341144,17200.0,17199.0,0.004]
[1673321080480,1.54841144,17200.0,17199.0,0.004]
[1673321081748,2.17198266,17200.0,17199.0,0.004]
[1673321082015,2.00388266,17200.0,17199.0,0.004]
[1673321085333,2.17748241,17200.0,17199.0,0.004]
[1673321085854,2.00389925,17200.0,17199.0,0.004]
[1673321086613,2.43888988,17200.0,17199.0,0.004]
[1673321086856,2.69941915,17200.0,17199.0,0.004]
[1673321088385,2.25011683,17200.0,17199.0,0.004]
[1673321090953,1.72818009,17200.0,17199.0,0.004]
[1673321091476,1.5545259,17200.0,17199.0,0.004]
[1673321091726,2.00382822,17200.0,17199.0,0.004]
[1673321093785,1.5545259,17200.0,17199.0,0.004]
[1673321094058,1.38020373,17200.0,17199.0,0.004]
[1673321095065,1.72874626,17200.0,17199.0,0.004]
[1673321095317,1.72874677,17200.0,17199.0,0.004]
[1673321095550,1.82950656,17200.0,17199.0,0.004]
[1673321095826,2.00382822,17200.0,17199.0,0.004]
[1673321096745,1.5545259,17200.0,17199.0,0.004]
[1673321097991,2.00382822,17200.0,17199.0,0.004]
[1673321098244,2.17748241,17200.0,17199.0,0.004]
[1673321098466,2.6964942,17200.0,17199.0,0.004]
[1673321100707,2.34795167,17200.0,17199.0,0.004]
[1673321101415,2.34795167,17200.0,17199.0,0.000734]
[1673321102696,2.69658413,17200.0,17199.0,0.000734]
[1673321103985,2.34795167,17200.0,17199.0,0.000734]
[1673321104266,2.2560896,17200.0,17199.0,0.000734]
[1673321105782,2.60477348,17200.0,17199.0,0.000734]
[1673321106277,2.80830608,17200.0,17199.0,0.000734]
[1673321107877,2.4596222,17200.0,17199.0,0.000734]
[1673321108671,2.21191073,17200.0,17199.0,0.000734]
[1673321108936,2.73391798,17200.0,17199.0,0.000734]
[1673321111504,2.72375504,17200.0,17199.0,0.000734]
[1673321112289,2.19282614,17200.0,17199.0,0.000734]
[1673321112853,2.19282614,17200.0,17199.0,6.26e-05]
[1673321113392,2.59662614,17200.0,17199.0,6.26e-05]
[1673321114989,2.24311889,17200.0,17199.0,6.26e-05]
[1673321116056,2.8314078,17200.0,17199.0,6.26e-05]
[1673321116321,3.1314078,17200.0,17199.0,6.26e-05]
[1673321116613,4.42994858,17200.0,17199.0,2.6e-06]
[1673321117689,4.80424858,17200.0,17199.0,2.6e-06]
[1673321122173,5.50162646,17200.0,17199.0,2.6e-06]
[1673321123043,4.91333755,17200.0,17199.0,2.6e-06]
[1673321125293,5.50162646,17200.0,17199.0,2.6e-06]
[1673321125548,5.74e-05,17198.0,17195.0,0.00015]
[1673321125806,0.94446635,17196.0,17195.0,0.00015]
[1673321126024,1.75837345,17196.0,17195.0,0.00015]
[1673321126292,1.58448045,17196.0,17194.0,0.0063539]
[1673321126549,0.562159,17195.0,17194.0,0.0063539]
[1673321126802,1.0139071,17195.0,17194.0,0.0063539]
[1673321127048,1.18474315,17195.0,17194.0,0.0063539]
[1673321127568,1.18474315,17195.0,17194.0,0.1073539]
[1673321127569,1.63649125,17195.0,17194.0,0.1073539]
[1673321127799,1.63649125,17195.0,17194.0,0.0063539]
[1673321128048,1.64349125,17195.0,17194.0,0.1073539]
[1673321128787,1.63649125,17195.0,17194.0,0.0063539]
[1673321129032,1.63649125,17195.0,17194.0,0.0153539]
[1673321129033,1.71849125,17195.0,17194.0,0.0153539]
[1673321129549,1.0959071,17195.0,17194.0,0.0153539]
[1673321129796,2.08191109,17195.0,17194.0,0.0153539]
[1673321130055,2.25494777,17195.0,17194.0,0.0153539]
[1673321130300,1.99417648,17195.0,17194.0,0.0153539]
[1673321130811,1.82037442,17195.0,17194.0,0.0153539]
[1673321135931,1.99417648,17195.0,17194.0,0.0153539]
[1673321136707,1.82037442,17195.0,17194.0,0.0153539]
[1673321146697,1.82037442,17195.0,17194.0,0.01524251]
[1673321148231,1.82497648,17195.0,17194.0,0.01524251]
[1673321151543,2.08574777,17195.0,17194.0,0.01524251]
[1673321152094,2.25964077,17195.0,17194.0,0.01524251]
[1673321154154,2.47639411,17195.0,17194.0,0.01524251]
[1673321154973,2.12869905,17195.0,17194.0,0.01524251]
[1673321155229,2.47740464,17195.0,17194.0,0.01524251]
[1673321155487,2.12869905,17195.0,17194.0,0.01524251]
[1673321156597,1.69408023,17195.0,17194.0,0.01524251]
[1673321163595,2.10483193,17195.0,17194.0,0.01524251]
[1673321165577,1.74267293,17195.0,17194.0,0.01524251]
[1673321165827,2.10483193,17195.0,17194.0,0.01524251]
[1673321166340,1.74267293,17195.0,17194.0,0.01524251]
[1673321166606,2.10483193,17195.0,17194.0,0.01524251]
[1673321168859,0.2,17194.0,17192.0,0.33496892]
[1673321169156,0.53655522,17193.0,17191.0,0.62058902]
[1673321169364,0.17439622,17193.0,17191.0,0.62058902]
[1673321169641,0.17439622,17193.0,17191.0,0.79442549]
[1673321170145,0.17439622,17193.0,17192.0,0.008]
[1673321171176,0.17439622,17193.0,17191.0,0.79442549]
[1673321171443,0.18939622,17193.0,17191.0,0.79542549]
[1673321171721,0.17439622,17193.0,17191.0,0.79442549]
[1673321171916,0.26239622,17193.0,17192.0,0.008]
[1673321172171,0.17439622,17193.0,17191.0,0.79442549]
[1673321172676,0.18939622,17193.0,17191.0,0.79542549]
[1673321172931,0.17439622,17193.0,17191.0,0.79442549]
[1673321173195,0.088,17193.0,17192.0,0.008]
[1673321173958,1.63110681,17194.0,17191.0,1.0551802]
[1673321174207,0.015,17193.0,17191.0,1.0561802]
[1673321174712,0.015,17193.0,17191.0,0.79542549]
[1673321174962,0.17439622,17193.0,17191.0,0.79442549]
[1673321175736,0.18939622,17193.0,17191.0,0.79542549]
[1673321176444,0.77136327,17193.0,17191.0,0.79542549]
[1673321176943,1.03295761,17193.0,17191.0,0.79542549]
[1673321177184,1.03295761,17193.0,17191.0,0.62158902]
[1673321177431,1.03295761,17193.0,17191.0,0.79542549]
[1673321177692,0.77136327,17193.0,17191.0,0.79542549]
[1673321178230,1.03295761,17193.0,17191.0,0.79542549]
[1673321178496,1.03295761,17193.0,17191.0,0.62158902]
[1673321186244,1.03295761,17193.0,17191.0,0.79542549]
[1673321187312,1.03295761,17193.0,17191.0,0.62158902]
[1673321188071,1.03295761,17193.0,17191.0,0.79542549]
[1673321189323,0.51283541,17192.0,17191.0,0.00780976]
[1673321189853,0.88723163,17192.0,17191.0,0.00780976]
[1673321190895,0.88723163,17192.0,17191.0,0.00680976]
[1673321191159,0.90223163,17192.0,17191.0,0.00780976]
[1673321191925,0.88723163,17192.0,17191.0,0.00680976]
[1673321192161,0.90223163,17192.0,17191.0,0.00780976]
[1673321192413,0.88723163,17192.0,17191.0,0.00680976]
[1673321192671,0.90223163,17192.0,17191.0,0.00780976]
[1673321192942,0.90223163,17192.0,17191.0,0.00680976]
[1673321193492,0.2,17191.0,17190.0,0.26075471]
[1673321193745,0.2,17191.0,17190.0,0.42945471]
[1673321194283,0.2,17191.0,17190.0,0.1687]
[1673321194728,0.2,17191.0,17190.0,0.79161371]
[1673321194987,0.005,17191.0,17190.0,1.6076835]
[1673321195259,0.01,17191.0,17190.0,0.84961371]
[1673321195523,0.88723163,17192.0,17190.0,1.60767191]
[1673321195796,0.88723163,17192.0,17191.0,0.362159]
[1673321196035,0.88667645,17192.0,17190.0,0.48745471]
[1673321196561,0.63059391,17191.0,17190.0,0.48745471]
[1673321196837,0.63059391,17191.0,17190.0,0.42945471]
[1673321197103,0.63059391,17191.0,17190.0,0.79161371]
[1673321197352,0.63059391,17191.0,17190.0,0.84961371]
[1673321197605,0.63059391,17191.0,17190.0,0.1687]
[1673321197878,0.63559391,17191.0,17190.0,0.2267]
[1673321198135,0.63059391,17191.0,17190.0,0.1687]
[1673321198405,0.63559391,17191.0,17190.0,0.2267]
[1673321198648,0.63059391,17191.0,17190.0,0.1687]
[1673321198897,0.63059391,17191.0,17190.0,0.530859]
[1673321199748,0.63559391,17191.0,17190.0,0.2267]
[1673321199925,0.63559391,17191.0,17190.0,0.588859]
[1673321200182,0.63059391,17191.0,17190.0,0.79161371]
[1673321200435,0.63059391,17191.0,17190.0,0.84961371]
[1673321200436,0.63559391,17191.0,17190.0,0.84961371]
[1673321200932,0.63059391,17191.0,17190.0,0.79161371]
[1673321201180,0.63559391,17191.0,17190.0,1.6661565]
[1673321201426,0.63059391,17191.0,17190.0,1.6081565]
[1673321202432,0.63559391,17191.0,17190.0,0.2267]
[1673321202688,0.63559391,17191.0,17190.0,0.1687]
[1673321203229,0.63059391,17191.0,17190.0,0.1687]
[1673321203733,0.63559391,17191.0,17190.0,0.2267]
[1673321203993,0.63059391,17191.0,17190.0,0.1687]
[1673321204255,0.63559391,17191.0,17190.0,0.2267]
[1673321204521,0.63559391,17191.0,17190.0,0.1687]
[1673321204522,0.63059391,17191.0,17190.0,0.1687]
[1673321205330,0.63559391,17191.0,17190.0,0.2267]
[1673321205607,0.63059391,17191.0,17190.0,0.1687]
[1673321205858,0.63559391,17191.0,17190.0,0.2267]
[1673321206158,0.63059391,17191.0,17190.0,0.1687]
[1673321207207,0.63059391,17191.0,17190.0,0.4004499]
[1673321207473,0.63559391,17191.0,17190.0,0.4004499]
[1673321207967,0.63559391,17191.0,17190.0,0.7626089]
[1673321208238,0.63059391,17191.0,17190.0,0.5359089]
[1673321208481,0.63559391,17191.0,17190.0,0.79666361]
[1673321209004,0.63059391,17191.0,17190.0,0.79666361]
[1673321209261,0.63059391,17191.0,17190.0,0.1737499]
[1673321210575,0.63059391,17191.0,17190.0,0.43450461]
[1673321211093,0.63059391,17191.0,17190.0,0.1737499]
[1673321211347,0.63559391,17191.0,17190.0,0.2317499]
[1673321211606,0.63059391,17191.0,17190.0,0.1737499]
[1673321211856,0.63559391,17191.0,17190.0,0.2317499]
[1673321212113,0.63559391,17191.0,17190.0,0.1737499]
[1673321212374,0.64059391,17191.0,17190.0,0.2317499]
[1673321212664,0.63059391,17191.0,17190.0,0.1737499]
[1673321212911,0.63559391,17191.0,17190.0,0.2317499]
[1673321214212,0.63059391,17191.0,17190.0,0.1737499]
[1673321214459,0.63559391,17191.0,17190.0,0.2317499]
[1673321214729,0.63059391,17191.0,17190.0,0.1737499]
[1673321214988,0.63559391,17191.0,17190.0,0.2317499]
[1673321215294,0.63559391,17191.0,17190.0,0.1737499]
[1673321215568,0.64059391,17191.0,17190.0,0.49250461]
[1673321215868,0.63059391,17191.0,17190.0,1.61733062]
[1673321216121,0.63559391,17191.0,17190.0,1.67533062]
[1673321216637,0.63559391,17191.0,17190.0,1.31317162]
[1673321217148,0.63059391,17191.0,17190.0,1.25517162]
[1673321217401,0.63559391,17191.0,17190.0,1.31317162]
[1673321217647,0.63059391,17191.0,17190.0,1.25517162]
[1673321217948,0.63559391,17191.0,17190.0,1.67533062]
[1673321218149,0.63059391,17191.0,17190.0,1.61733062]
[1673321218404,0.63559391,17191.0,17190.0,1.67533062]
[1673321218660,0.63059391,17191.0,17190.0,1.61733062]
[1673321218936,0.63059391,17191.0,17190.0,1.67533062]
[1673321218937,0.63559391,17191.0,17190.0,1.67533062]
[1673321219687,0.63559391,17191.0,17190.0,1.31317162]
[1673321219946,0.63059391,17191.0,17190.0,0.43450461]
[1673321220202,0.63559391,17191.0,17190.0,0.43450461]
[1673321220713,0.63559391,17191.0,17190.0,1.67544219]
[1673321220964,0.63059391,17191.0,17190.0,1.61744219]
[1673321221221,0.63559391,17191.0,17190.0,0.43450461]
[1673321221473,0.005,17191.0,17190.0,0.1737499]
[1673321221746,0.005,17191.0,17190.0,1.5010097]
[1673321221987,1.4058167,17193.0,17191.0,0.005]
[1673321222238,0.95597538,17193.0,17192.0,0.362159]
[1673321222490,0.95597538,17193.0,17191.0,0.17884003]
[1673321222739,1.4058167,17193.0,17191.0,0.17884003]
[1673321223254,1.4938167,17193.0,17192.0,0.008]
[1673321223560,0.95597538,17193.0,17191.0,0.17884003]
[1673321223794,1.4208167,17193.0,17191.0,0.17984003]
[1673321224060,1.4208167,17193.0,17191.0,0.83004218]
[1673321224318,1.05897538,17193.0,17192.0,0.008]
[1673321224574,0.95597538,17193.0,17191.0,0.56928747]
[1673321224841,1.4208167,17193.0,17191.0,0.57028747]
[1673321226588,0.53143762,17192.0,17191.0,0.006]
[1673321226852,0.90583384,17192.0,17191.0,0.006]
[1673321227587,1.16742818,17192.0,17191.0,0.005]
[1673321227845,1.18242818,17192.0,17191.0,0.006]
[1673321228851,0.92083384,17192.0,17191.0,0.006]
[1673321231165,0.74643762,17192.0,17191.0,0.006]
[1673321231420,0.74643762,17192.0,17191.0,0.17984003]
[1673321231672,0.54643762,17192.0,17191.0,0.17984003]
[1673321231970,0.015,17192.0,17191.0,0.60182525]
[1673321232177,0.015,17192.0,17191.0,2.21214614]
[1673321232433,0.015,17192.0,17191.0,2.68597906]
[1673321232955,0.015,17192.0,17191.0,2.38597906]
[1673321233453,0.015,17192.0,17191.0,2.21198075]
[1673321233705,0.015,17192.0,17191.0,2.51198075]
[1673321233970,0.015,17192.0,17191.0,2.68597906]
[1673321234479,0.015,17192.0,17191.0,2.7441759]
[1673321234735,0.015,17192.0,17191.0,3.35603599]
[1673321235005,0.015,17192.0,17191.0,3.52453599]
[1673321235245,0.015,17192.0,17191.0,3.53303599]
[1673321236029,0.015,17192.0,17191.0,3.793372]
[1673321236331,1.34902232,17195.0,17191.0,3.35778081]
[1673321236556,0.008,17192.0,17191.0,2.60592926]
[1673321236803,0.008,17192.0,17191.0,3.0144254]
[1673321237052,0.008,17192.0,17191.0,3.35834852]
[1673321237320,1.34902232,17195.0,17191.0,2.9363633]
[1673321237573,0.907181,17195.0,17194.0,0.1692]
[1673321237837,0.73278478,17195.0,17194.0,0.53128807]
[1673321238099,0.73278478,17195.0,17194.0,0.16912907]
[1673321238403,0.72478478,17195.0,17194.0,0.16912907]
[1673321239110,0.81378478,17195.0,17194.0,0.17712907]
[1673321239641,0.289,17195.0,17194.0,0.17712907]
[1673321239907,0.289,17195.0,17194.0,0.57572572]
[1673321240411,0.089,17195.0,17194.0,0.57572572]
[1673321242991,0.089,17195.0,17194.0,0.71480696]
[1673321243252,0.089,17195.0,17194.0,1.10591428]
[1673321244264,0.089,17195.0,17194.0,1.40591428]
[1673321244532,1.14098048,17197.0,17194.0,1.39791428]
[1673321244874,0.004,17195.0,17194.0,2.19571214]
[1673321245079,0.004,17195.0,17194.0,1.51962621]
[1673321245340,1.34098048,17197.0,17194.0,1.99748521]
[1673321245593,0.89113916,17197.0,17195.0,0.531359]
[1673321245857,0.89113916,17197.0,17195.0,0.1692]
[1673321246153,0.89113916,17197.0,17196.0,0.44487817]
[1673321246387,0.20928052,17197.0,17196.0,0.44487817]
[1673321247428,0.22928052,17197.0,17196.0,0.44487817]
[1673321247699,0.20928052,17197.0,17196.0,0.44487817]
[1673321247993,0.29228052,17197.0,17196.0,0.45287817]
[1673321248805,0.09228052,17197.0,17196.0,0.45287817]
[1673321254249,0.09228052,17197.0,17196.0,0.008]
[1673321254532,0.65443952,17197.0,17196.0,0.008]
[1673321255042,0.29228052,17197.0,17196.0,0.008]
[1673321257394,0.09228052,17197.0,17196.0,0.34066409]
[1673321258949,0.09228052,17197.0,17196.0,0.34058332]
[1673321262000,0.34228052,17197.0,17196.0,0.34058332]
[1673321268471,0.34167318,17197.0,17196.0,0.34058332]
[1673321276003,0.5160694,17197.0,17196.0,0.34058332]
[1673321276266,0.8782284,17197.0,17196.0,0.34058332]
[1673321276509,0.5160694,17197.0,17196.0,0.34058332]
[1673321280322,1.13982274,17197.0,17196.0,0.34058332]
[1673321281387,0.77518674,17197.0,17196.0,0.34058332]
[1673321284292,0.5135924,17197.0,17196.0,0.34058332]
[1673321284825,0.77518674,17197.0,17196.0,0.34058332]
[1673321286661,1.13734574,17197.0,17196.0,0.34058332]
[1673321287611,1.31174197,17197.0,17196.0,0.34058332]
[1673321288123,0.94958297,17197.0,17196.0,0.34058332]
[1673321288394,0.94958297,17197.0,17196.0,0.00791923]
[1673321288688,2.39059149,17197.0,17196.0,0.00791923]
[1673321288925,2.61481093,17197.0,17196.0,0.00791923]
[1673321289706,2.20280934,17197.0,17196.0,0.00791923]
[1673321289998,2.56496834,17197.0,17196.0,0.00791923]
[1673321290220,2.02845588,17197.0,17196.0,0.00791923]
[1673321290501,2.39061488,17197.0,17196.0,0.00791923]
[1673321290741,2.82658607,17197.0,17196.0,0.00791923]
[1673321291010,2.56496834,17197.0,17196.0,0.00791923]
[1673321291801,2.82654994,17197.0,17196.0,0.00791923]
[1673321292318,2.56496834,17197.0,17196.0,0.00791923]
[1673321292878,2.61597147,17197.0,17196.0,0.00791923]
[1673321293134,2.56496834,17197.0,17196.0,0.00791923]
[1673321293663,2.82651596,17197.0,17196.0,0.00791923]
[1673321293922,2.39054477,17197.0,17196.0,0.00791923]
[1673321294185,2.56496834,17197.0,17196.0,0.00791923]
[1673321294467,2.46435814,17197.0,17196.0,0.00791923]
[1673321294727,2.82651714,17197.0,17196.0,0.00791923]
[1673321294996,2.02838695,17197.0,17196.0,0.00791923]
[1673321295294,2.39054595,17197.0,17196.0,0.00791923]
[1673321296630,2.02838695,17197.0,17196.0,0.00791923]
[1673321296888,2.39054595,17197.0,17196.0,0.00791923]
[1673321297153,2.02838695,17197.0,17196.0,0.00791923]
[1673321297412,2.56488452,17197.0,17196.0,0.00791923]
[1673321297667,2.21609207,17197.0,17196.0,0.00791923]
[1673321297957,1.85393307,17197.0,17196.0,0.00791923]
[1673321298212,2.21609207,17197.0,17196.0,0.00804972]
[1673321298472,2.21609207,17197.0,17196.0,0.00791923]
[1673321298717,1.40409175,17197.0,17196.0,0.00791923]
[1673321299266,2.56488375,17197.0,17196.0,0.00791923]
[1673321299521,2.39054595,17197.0,17196.0,0.00791923]
[1673321301883,2.02838695,17197.0,17196.0,0.00791923]
[1673321302138,2.39054595,17197.0,17196.0,0.00791923]